bitfinex-derivatives/quotes_ETHF0:USTF0_20250220
["timestamp","ask_amount","ask_price","bid_price","bid_amount"]
[1740021849207,0.5706,2739.6,2739.3,3.93804]
[1740021849903,1.30076,2739.6,2739.3,3.93804]
[1740021850095,1.30076,2739.6,2739.3,3.2078]
[1740021851408,0.73021,2739.5,2739.3,3.2078]
[1740021852109,0.5706,2739.6,2739.3,3.2078]
[1740021852607,0.5706,2739.6,2739.4,0.7302]
[1740021853105,0.5454,2739.9,2739.5,0.5564]
[1740021853303,0.5822,2740.0,2739.6,5.08245]
[1740021854012,1.31227,2740.0,2739.6,5.08245]
[1740021854202,3.5347,2740.2,2739.6,4.3523]
[1740021854402,0.73007,2740.0,2739.6,4.3523]
[1740021854598,0.73007,2740.0,2739.7,0.73013]
[1740021855411,6.4943,2740.2,2739.6,4.3523]
[1740021855613,0.5577,2739.9,2739.6,4.3523]
[1740021855913,5.9527,2740.2,2739.6,4.3523]
[1740021856210,0.7301,2739.9,2739.6,4.3523]
[1740021856406,0.7301,2739.9,2739.6,5.08246]
[1740021856614,0.73007,2740.0,2739.6,5.08246]
[1740021856908,0.5577,2740.1,2739.6,4.3523]
[1740021857107,0.73007,2740.0,2739.6,5.08245]
[1740021857509,0.5577,2740.1,2739.6,5.08245]
[1740021857697,0.73007,2740.0,2739.6,5.08245]
[1740021858114,0.5577,2740.1,2739.6,4.3523]
[1740021858305,1.28775,2740.1,2739.7,0.73012]
[1740021858706,0.73006,2740.0,2739.7,0.73012]
[1740021858904,1.28774,2740.1,2739.8,0.73011]
[1740021859408,1.28774,2740.1,2739.9,0.5418]
[1740021859607,0.73004,2740.1,2739.9,0.5418]
[1740021860010,0.73001,2740.2,2739.9,3.7496]
[1740021860311,3.4987,2740.4,2739.9,4.47968]
[1740021860517,0.72997,2740.3,2739.9,3.7496]
[1740021860705,0.73,2740.2,2739.9,3.7496]
[1740021861307,3.4942,2740.4,2740.0,0.73005]
[1740021861609,3.4942,2740.4,2740.1,1.0827]
[1740021861914,0.72998,2740.3,2740.1,1.0827]
[1740021862218,0.5342,2740.4,2740.1,1.0827]
[1740021862514,0.72999,2740.3,2740.1,1.0827]
[1740021862717,0.73,2740.2,2740.1,0.5406]
[1740021864113,0.72999,2740.3,2740.1,0.5406]
[1740021864415,0.72998,2740.3,2740.1,0.5406]
[1740021865110,0.5342,2740.4,2740.1,0.5406]
[1740021865508,0.5342,2740.4,2740.1,1.27063]
[1740021865708,1.26415,2740.4,2740.1,1.27063]
[1740021865918,5.6258,2740.6,2740.1,1.27063]
[1740021866214,0.72993,2740.5,2740.1,1.27063]
[1740021866713,3.2078,2740.6,2740.1,0.5406]
[1740021866915,3.93769,2740.6,2740.2,0.73]
[1740021867219,3.93769,2740.6,2740.3,0.5794]
[1740021867417,3.93769,2740.6,2740.3,1.1464]
[1740021867918,0.72993,2740.5,2740.3,1.1464]
[1740021868118,3.2078,2740.6,2740.3,1.1464]
[1740021868318,0.72993,2740.5,2740.3,1.1464]
[1740021869021,0.72995,2740.4,2740.3,1.1464]
[1740021869816,0.72995,2740.4,2740.3,0.567]
[1740021870723,1.28485,2740.4,2740.3,0.567]
[1740021873420,0.5549,2740.4,2739.9,3.2078]
[1740021873632,0.73004,2740.1,2739.9,3.2078]
[1740021874218,0.73004,2740.1,2739.9,3.93788]
[1740021874420,0.73004,2740.1,2739.9,3.2078]
[1740021875828,0.5549,2740.4,2739.9,3.2078]
[1740021876124,0.73005,2740.0,2739.9,3.2078]
[1740021876519,0.73005,2740.1,2739.9,44.0078]
[1740021877126,0.73005,2740.1,2740.0,1.1096]
[1740021878120,0.73005,2740.1,2740.0,0.5323]
[1740021878320,0.5549,2740.4,2739.9,44.0078]
[1740021878629,0.73005,2740.0,2739.9,44.0078]
[1740021880723,0.5549,2740.4,2739.9,44.0078]
[1740021880923,0.73001,2740.2,2739.9,44.73787]
[1740021881229,0.73002,2740.2,2739.9,44.73787]
[1740021881630,0.73004,2740.1,2739.9,44.0078]
[1740021882032,2.9709,2740.4,2739.9,44.0078]
[1740021882225,0.73003,2740.2,2739.9,44.0078]
[1740021882529,0.73003,2740.1,2739.9,44.0078]
[1740021884630,0.73003,2740.1,2739.9,44.73788]
[1740021884930,0.73003,2740.1,2739.9,44.0078]
[1740021885329,0.73002,2740.2,2739.9,44.73787]
[1740021885827,0.73002,2740.2,2740.0,3.2078]
[1740021887619,0.73002,2740.2,2739.9,41.53007]
[1740021888031,0.73002,2740.2,2740.0,3.2078]
[1740021888532,0.72999,2740.3,2740.0,3.2078]
[1740021888733,0.72999,2740.3,2740.0,3.93785]
[1740021890525,0.73,2740.3,2740.0,3.93785]
[1740021890929,0.72999,2740.3,2740.0,3.93785]
[1740021894827,0.72998,2740.3,2740.1,0.73001]
[1740021895029,2.96,2740.5,2740.2,0.72999]
[1740021895230,2.96,2740.5,2740.3,2.38606]
[1740021895525,2.96,2740.5,2740.3,2.38607]
[1740021895726,2.96,2740.5,2740.3,1.6561]
[1740021895930,3.93771,2740.6,2740.3,1.6561]
[1740021896521,3.2078,2740.6,2740.3,1.6561]
[1740021896734,0.72993,2740.5,2740.3,1.6561]
[1740021897736,3.7928,2740.6,2740.3,1.6561]
[1740021898033,0.72992,2740.5,2740.3,1.1062]
[1740021898434,0.72995,2740.4,2740.3,1.1062]
[1740021898823,0.72995,2740.4,2740.3,0.5614]
[1740021899235,0.585,2740.6,2740.3,0.5614]
[1740021899432,0.72995,2740.4,2740.3,0.5614]
[1740021899931,0.72994,2740.5,2740.3,0.5614]
[1740021900140,0.585,2740.6,2740.3,0.5614]
[1740021900329,0.585,2740.6,2740.3,1.29136]
[1740021900330,1.3149,2740.6,2740.3,1.29136]
[1740021900534,0.7299,2740.6,2740.4,0.5405]
[1740021901433,4.1284,2740.8,2740.4,0.5405]
[1740021901830,0.72992,2740.5,2740.4,0.5405]
[1740021902030,4.1284,2740.8,2740.3,0.5614]
[1740021902336,0.72995,2740.4,2740.3,0.5614]
[1740021903237,1.7134,2740.8,2740.3,3.7692]
[1740021903434,0.72991,2740.6,2740.3,4.49916]
[1740021903635,0.72991,2740.6,2740.3,3.7692]
[1740021903838,0.72991,2740.6,2740.3,4.49916]
[1740021904138,0.72991,2740.6,2740.4,0.72994]
[1740021904337,4.1284,2740.8,2740.4,0.72994]
[1740021904632,3.2078,2740.9,2740.3,3.7692]
[1740021905030,3.93762,2740.9,2740.5,0.72991]
[1740021905235,0.72984,2740.8,2740.6,0.5759]
[1740021905534,0.72984,2740.8,2740.7,0.5584]
[1740021906038,0.72984,2740.8,2740.7,1.1123]
[1740021906234,3.2078,2740.9,2740.7,1.1123]
[1740021907133,0.72984,2740.8,2740.7,1.1123]
[1740021907334,2.9785,2741.0,2740.7,1.1123]
[1740021907529,0.72982,2740.9,2740.7,1.1123]
[1740021907836,0.72984,2740.8,2740.7,1.1123]
[1740021908440,0.72983,2740.9,2740.7,1.1123]
[1740021909135,3.7083,2741.0,2740.7,1.84216]
[1740021909339,2.415,2741.0,2740.8,0.72984]
[1740021909745,2.415,2741.0,2740.7,1.84215]
[1740021910242,2.415,2741.0,2740.7,1.1123]
[1740021910440,3.14479,2741.0,2740.7,1.84215]
[1740021910638,2.415,2741.0,2740.7,1.1123]
[1740021910839,0.72984,2740.9,2740.7,1.1123]
[1740021911035,0.72983,2740.9,2740.7,1.1123]
[1740021911340,0.72982,2740.9,2740.7,1.1123]
[1740021911838,0.72984,2740.8,2740.7,1.1123]
[1740021912343,0.72994,2740.5,2740.3,3.2078]
[1740021912538,0.72994,2740.5,2740.4,0.5476]
[1740021912739,1.1201,2740.8,2740.4,0.5476]
[1740021912940,0.72988,2740.7,2740.4,1.1116]
[1740021913242,0.72988,2740.7,2740.4,1.6986]
[1740021913432,0.72987,2740.7,2740.4,1.6986]
[1740021913945,1.1201,2740.8,2740.4,1.6986]
[1740021914241,0.72992,2740.5,2740.4,1.6986]
[1740021914436,1.1201,2740.8,2740.4,1.6986]
[1740021914642,0.72988,2740.7,2740.4,2.42854]
[1740021916040,2.415,2741.0,2740.4,1.6986]
[1740021916240,3.2078,2741.2,2740.4,1.6986]
[1740021916441,6.35155,2741.2,2740.8,0.72983]
[1740021916639,0.72977,2741.1,2740.9,1.1299]
[1740021916934,3.2078,2741.2,2740.9,1.6688]
[1740021917239,3.2078,2741.2,2741.0,0.72978]
[1740021917441,3.2078,2741.2,2740.9,1.6688]
[1740021917442,3.2078,2741.5,2741.2,0.72973]
[1740021917638,3.2078,2741.5,2741.3,0.5389]
[1740021917837,3.2078,2741.5,2741.4,1.1394]
[1740021918038,0.5595,2741.7,2741.4,1.1394]
[1740021918344,0.72963,2741.6,2741.4,1.1394]
[1740021918938,0.72965,2741.5,2741.4,0.55]
[1740021919143,0.72968,2741.4,2741.3,0.5389]
[1740021920739,0.72973,2741.2,2741.1,0.00547485]
[1740021929648,1.85623,2741.2,2741.1,0.00547485]
[1740021932745,4.3343,2741.2,2740.3,3.2078]
[1740021932943,0.72995,2740.4,2740.3,3.2078]
[1740021933548,0.72994,2740.5,2740.3,3.2078]
[1740021933944,0.72992,2740.5,2740.4,1.1539]
[1740021937051,0.72992,2740.6,2740.4,1.1539]
[1740021937953,0.00544115,2740.7,2740.6,0.72989]
[1740021938152,0.00544115,2740.7,2740.6,3.93769]
[1740021938352,2.413,2741.1,2740.6,44.0078]
[1740021938551,5.6208,2741.5,2740.9,0.72981]
[1740021938856,0.72971,2741.3,2741.0,1.1269]
[1740021939358,5.6208,2741.5,2741.0,1.1269]
[1740021939547,0.72976,2741.1,2741.0,1.1269]
[1740021940860,0.72975,2741.2,2741.0,1.1269]
[1740021941060,0.72976,2741.1,2741.0,1.1269]
[1740021941460,0.72976,2741.1,2741.0,0.5661]
[1740021947066,0.72978,2741.1,2740.8,0.72983]
[1740021947358,0.72978,2741.1,2740.9,0.5811]
[1740021947562,0.72978,2741.1,2740.9,1.31091]
[1740021947765,0.72978,2741.1,2740.9,0.5811]
[1740021948261,5.6208,2741.5,2740.9,0.5811]
[1740021948463,0.72976,2741.1,2740.9,0.5811]
[1740021950465,0.72979,2741.0,2740.9,3.7889]
[1740021950961,0.72977,2741.1,2740.9,3.7889]
[1740021952263,0.72972,2741.3,2740.9,4.5187]
[1740021952963,5.6198,2741.5,2740.9,4.5187]
[1740021953164,0.72974,2741.2,2740.9,4.5187]
[1740021954869,0.72974,2741.2,2740.9,1.3109]
[1740021955059,0.72974,2741.2,2741.0,3.2078]
[1740021955260,0.72974,2741.2,2741.1,1.0903]
[1740021957462,0.72972,2741.3,2741.1,1.0903]
[1740021959169,0.72973,2741.2,2741.1,1.0903]
[1740021959369,4.9414,2741.6,2741.1,1.0903]
[1740021959571,0.72972,2741.3,2741.1,1.0903]
[1740021960466,7.3534,2741.6,2741.1,1.0903]
[1740021960671,0.72973,2741.2,2741.1,1.0903]
[1740021961265,7.3534,2741.6,2741.1,1.0903]
[1740021961666,0.7297,2741.4,2741.1,1.0903]
[1740021961874,0.72972,2741.3,2741.1,1.0903]
[1740021962171,7.3534,2741.6,2741.1,1.82005]
[1740021962474,0.7297,2741.4,2741.1,1.82006]
[1740021964579,0.7297,2741.4,2741.2,0.72973]
[1740021964869,1.88063,2741.6,2741.3,3.9375]
[1740021965079,1.88063,2741.6,2741.4,0.5632]
[1740021965270,0.72962,2741.7,2741.4,0.5632]
[1740021965577,0.72962,2741.7,2741.5,1.0928]
[1740021967176,0.72963,2741.6,2741.5,1.0928]
[1740021967580,0.72961,2741.7,2741.5,1.0928]
[1740021968574,0.72963,2741.6,2741.5,1.0928]
[1740021968774,0.5347,2742.0,2741.6,0.72961]
[1740021968980,2.411,2742.2,2741.6,3.2078]
[1740021969182,0.72949,2742.1,2741.7,0.72959]
[1740021969478,0.72949,2742.2,2741.7,0.72959]
[1740021969680,0.72949,2742.2,2741.8,0.5336]
[1740021969880,0.72949,2742.2,2741.9,1.1305]
[1740021970274,4.84606,2742.3,2741.9,1.1305]
[1740021970779,0.72949,2742.2,2741.9,1.1305]
[1740021971286,0.7295,2742.1,2741.9,1.1305]
[1740021972084,4.84606,2742.3,2741.9,1.1305]
[1740021972682,4.1166,2742.3,2741.9,1.86004]
[1740021972884,4.84604,2742.3,2741.9,1.86004]
[1740021973281,4.84605,2742.3,2741.9,1.86005]
[1740021973785,4.84605,2742.3,2741.9,1.1305]
[1740021974382,4.84605,2742.3,2741.9,1.86004]
[1740021974584,1.7056,2742.3,2741.9,1.86004]
[1740021974783,3.2078,2742.4,2741.9,1.1305]
[1740021974980,3.2078,2742.4,2741.9,1.86003]
[1740021975182,3.93723,2742.4,2741.9,1.86003]
[1740021975677,3.2078,2742.4,2741.9,4.3383]
[1740021975877,4.83265,2742.7,2742.3,0.72943]
[1740021976087,4.83265,2742.7,2742.4,1.7062]
[1740021976283,0.72939,2742.6,2742.4,1.7062]
[1740021976489,0.5498,2742.7,2742.4,1.7062]
[1740021976788,1.1295,2742.7,2742.4,1.7062]
[1740021976982,0.72939,2742.5,2742.4,1.7062]
[1740021977382,0.5498,2742.7,2742.4,1.7062]
[1740021977688,0.72939,2742.5,2742.4,1.7062]
[1740021978079,0.72937,2742.6,2742.4,1.7062]
[1740021979183,0.72939,2742.5,2742.4,1.7062]
[1740021979685,0.5498,2742.7,2742.4,1.7062]
[1740021979882,0.72939,2742.5,2742.4,1.7062]
[1740021980084,0.72937,2742.6,2742.4,1.7062]
[1740021980487,0.5498,2742.7,2742.4,1.7062]
[1740021980686,0.72939,2742.5,2742.4,1.7062]
[1740021981385,5.6178,2742.9,2742.4,1.7062]
[1740021981585,0.72939,2742.5,2742.4,1.7062]
[1740021982681,0.72937,2742.6,2742.4,1.7062]
[1740021983185,0.72939,2742.5,2742.4,1.7062]
[1740021984186,0.5491,2742.8,2742.4,1.7062]
[1740021984382,0.72935,2742.7,2742.4,2.4356]
[1740021984881,0.5491,2742.8,2742.4,1.7062]
[1740021985089,0.72937,2742.6,2742.4,2.43561]
[1740021985282,0.5491,2742.8,2742.4,2.4356]
[1740021985283,0.72936,2742.7,2742.4,2.4356]
[1740021985679,0.5491,2742.8,2742.4,2.4356]
[1740021986081,0.5491,2742.8,2742.4,1.7062]
[1740021986282,3.2078,2742.9,2742.4,1.7062]
[1740021986585,0.72938,2742.6,2742.4,1.7062]
[1740021986787,0.72939,2742.5,2742.4,1.7062]
[1740021988290,3.2078,2742.6,2741.9,3.2078]
[1740021988591,0.72952,2742.0,2741.9,3.745]
[1740021988784,0.72952,2742.0,2741.9,0.5372]
[1740021989389,0.72957,2741.8,2741.6,0.5354]
[1740021989690,0.7296,2741.7,2741.6,0.5354]
[1740021990793,0.72963,2741.6,2741.5,0.00547485]
[1740021998387,3.93743,2741.6,2741.5,0.00547485]
[1740022007693,0.72963,2741.6,2741.5,0.00547485]
[1740022007898,3.93743,2741.6,2741.5,0.00547485]
[1740022008498,0.72984,2740.8,2740.7,1.1287]
[1740022009294,3.5402,2741.1,2740.7,1.1287]
[1740022009495,0.72984,2740.9,2740.7,1.1287]
[1740022009696,0.72984,2740.9,2740.8,3.2078]
[1740022010998,0.00547485,2741.2,2740.8,3.2078]
[1740022011195,0.7298,2741.0,2740.8,3.2078]
[1740022011603,2.41447485,2741.2,2740.8,3.2078]
[1740022011604,0.00547485,2741.2,2740.8,3.2078]
[1740022012199,0.73522485,2741.2,2740.8,3.93762]
[1740022013002,0.73522485,2741.2,2740.9,0.72981]
[1740022013503,0.00547485,2741.2,2741.1,3.93756]
[1740022013801,3.2078,2741.5,2741.2,0.72973]
[1740022014194,3.2078,2741.5,2741.1,4.3237]
[1740022014395,3.2078,2741.5,2741.3,0.72969]
[1740022014609,3.2078,2741.5,2741.2,0.72973]
[1740022014795,2.409,2741.8,2741.1,4.3237]
[1740022014993,0.72968,2741.4,2741.1,4.3237]
[1740022015200,0.72964,2741.6,2741.2,0.72971]
[1740022015405,2.409,2741.8,2741.1,4.3237]
[1740022015600,0.7296,2741.7,2741.3,0.72969]
[1740022016102,0.7296,2741.7,2741.4,0.5474]
[1740022016300,0.7296,2741.7,2741.5,0.5405]
[1740022016500,2.409,2741.8,2741.5,0.5405]
[1740022016799,0.72961,2741.7,2741.5,0.5405]
[1740022017007,0.72961,2741.7,2741.6,0.5888]
[1740022018205,0.72959,2741.8,2741.6,0.5888]
[1740022018698,0.7296,2741.7,2741.6,0.5888]
[1740022019804,0.72959,2741.8,2741.6,0.5888]
[1740022020396,3.2078,2741.9,2741.6,0.5888]
[1740022020599,0.7296,2741.7,2741.6,0.5888]
[1740022021103,0.72959,2741.8,2741.6,0.5888]
[1740022021398,2.96,2742.3,2741.7,3.2078]
[1740022021601,1.0743,2742.7,2742.0,3.2078]
[1740022021802,5.6158,2742.8,2742.2,0.72947]
[1740022022007,5.6158,2742.8,2742.3,44.5844]
[1740022022201,3.93712,2742.8,2742.3,44.5844]
[1740022022505,0.72934,2742.7,2742.3,44.5844]
[1740022022706,3.2078,2742.8,2742.3,45.31383]
[1740022022907,3.93713,2742.8,2742.3,45.31383]
[1740022023202,3.2078,2742.8,2742.3,44.5844]
[1740022023403,0.72934,2742.7,2742.3,45.31383]
[1740022023805,0.72934,2742.7,2742.3,44.5844]
[1740022024199,0.72933,2742.7,2742.3,44.5844]
[1740022025302,0.72933,2742.7,2742.3,45.31383]
[1740022025805,0.72933,2742.7,2742.3,44.5844]
[1740022026302,3.2078,2742.8,2742.3,4.51383]
[1740022026608,3.93713,2742.8,2742.3,4.51383]
[1740022026995,0.72936,2742.6,2742.3,3.7844]
[1740022027700,0.72935,2742.7,2742.3,3.7844]
[1740022027903,0.72935,2742.7,2742.3,4.51384]
[1740022028104,3.2078,2742.8,2742.3,3.7844]
[1740022028305,0.72927,2742.7,2742.3,3.7844]
[1740022028604,0.72925,2742.8,2742.4,0.72934]
[1740022028809,0.72926,2742.7,2742.4,0.72934]
[1740022029109,0.72926,2742.7,2742.3,4.51375]
[1740022029411,5.6158,2743.2,2742.3,3.7844]
[1740022029611,0.72927,2742.7,2742.3,4.51375]
[1740022030307,0.72927,2742.7,2742.3,3.7844]
[1740022031298,0.72927,2742.7,2742.3,4.51376]
[1740022031913,0.72931,2742.6,2742.3,4.51377]
[1740022033710,0.72931,2742.6,2742.3,3.7844]
[1740022034708,5.6158,2743.2,2742.3,3.7844]
[1740022034913,0.72933,2742.5,2742.3,3.7844]
[1740022035413,0.7293,2742.6,2742.3,3.7844]
[1740022035711,0.72932,2742.5,2742.3,3.7844]
[1740022037805,0.72933,2742.5,2742.3,3.7844]
[1740022040612,1.0738,2742.8,2742.3,3.7844]
[1740022040814,0.72932,2742.5,2742.3,3.7844]
[1740022042115,0.72932,2742.5,2742.3,4.51377]
[1740022042316,0.72932,2742.5,2742.3,3.7844]
[1740022043013,0.7293,2742.6,2742.3,4.51376]
[1740022043213,1.0738,2742.8,2742.3,4.51376]
[1740022043411,0.72931,2742.6,2742.3,4.51376]
[1740022045018,0.72932,2742.5,2742.3,4.51376]
[1740022045218,0.72932,2742.5,2742.3,3.7844]
[1740022045426,0.7293,2742.6,2742.3,4.51376]
[1740022045721,0.72932,2742.5,2742.3,4.51376]
[1740022046617,0.72932,2742.5,2742.3,3.7844]
[1740022047522,0.72931,2742.6,2742.3,4.51375]
[1740022047721,0.72932,2742.5,2742.3,3.7844]
[1740022048216,2.96,2743.2,2742.3,3.7844]
[1740022048415,1.643,2743.1,2742.8,3.2078]
[1740022048615,0.7292,2743.0,2742.9,0.5343]
[1740022049413,1.643,2743.1,2742.8,3.2078]
[1740022049820,0.72921,2742.9,2742.8,3.2078]
[1740022050515,1.643,2743.1,2742.8,3.2078]
[1740022050717,0.7292,2743.0,2742.8,3.2078]
[1740022050921,1.643,2743.1,2742.8,3.2078]
[1740022051122,0.72921,2742.9,2742.8,3.2078]
[1740022052423,0.72919,2743.0,2742.8,3.2078]
[1740022056830,0.7292,2743.0,2742.8,3.2078]
[1740022057028,0.72921,2742.9,2742.8,3.2078]
[1740022061231,1.8885,2743.0,2742.8,3.2078]
[1740022061623,1.1593,2743.0,2742.8,3.2078]
[1740022061824,1.8885,2743.0,2742.8,3.2078]
[1740022062027,1.1593,2743.0,2742.8,3.2078]
[1740022062231,0.72921,2742.9,2742.8,3.2078]
[1740022064933,1.1593,2743.0,2742.5,3.2078]
[1740022064934,0.72929,2742.6,2742.5,3.2078]
[1740022065936,0.72933,2742.5,2742.2,3.93718]
[1740022066232,0.5512,2742.7,2742.3,0.5824]
[1740022066432,0.5512,2742.7,2742.3,1.1311]
[1740022066627,0.5512,2742.7,2742.5,3.2078]
[1740022066828,1.28046,2742.7,2742.5,3.2078]
[1740022067231,3.13426,2742.8,2742.5,3.2078]
[1740022067436,0.72927,2742.7,2742.5,3.2078]
[1740022070936,2.405,2742.8,2742.5,3.2078]
[1740022071129,0.72927,2742.7,2742.5,3.2078]
[1740022072728,0.72928,2742.7,2742.5,3.2078]
[1740022073335,0.72928,2742.7,2742.5,3.9371]
[1740022073633,0.72928,2742.7,2742.5,3.2078]
[1740022075533,0.72929,2742.6,2742.5,3.2078]
[1740022075736,1.82239,2742.6,2742.5,3.2078]
[1740022078831,1.26129,2742.6,2742.5,3.2078]
[1740022084435,0.72931,2742.5,2742.4,0.5623]
[1740022085237,0.72931,2742.5,2742.4,1.29164]
[1740022085439,0.72931,2742.5,2742.4,0.5623]
[1740022087733,2.9747,2743.0,2742.4,0.5623]
[1740022087931,0.72929,2742.6,2742.5,3.2078]
[1740022088535,3.2078,2743.4,2742.5,3.2078]
[1740022088743,2.404,2743.3,2742.7,0.72925]
[1740022088942,4.2592,2743.3,2742.8,0.5351]
[1740022089138,3.5301,2743.3,2742.8,3.2078]
[1740022089442,0.72921,2742.9,2742.8,3.2078]
[1740022089652,3.13321,2742.9,2742.8,3.2078]
[1740022090141,2.404,2742.9,2742.4,3.7684]
[1740022090341,0.7293,2742.6,2742.4,3.7684]
[1740022090936,1.6948,2742.8,2742.4,3.7684]
[1740022091244,0.72931,2742.5,2742.4,3.7684]
[1740022092441,5.6118,2742.5,2742.1,0.00547485]
[1740022092743,0.72939,2742.2,2742.1,0.00547485]
[1740022107452,3.93719,2742.2,2742.1,0.00547485]
[1740022107846,9.93719,2742.2,2742.1,0.00547485]
[1740022108046,0.72953,2741.7,2741.6,0.5868]
[1740022108247,3.13353,2741.7,2741.6,0.5868]
[1740022110061,0.72955,2741.6,2741.5,3.2078]
[1740022110360,2.47945,2741.6,2741.5,3.2078]
[1740022110752,1.89245,2741.6,2741.5,3.2078]
[1740022112149,2.404,2741.7,2741.5,3.2078]
[1740022112554,3.13354,2741.7,2741.6,0.5641]
[1740022125566,3.13254,2741.7,2741.6,0.5641]
[1740022131567,2.403,2741.7,2741.4,0.57747485]
[1740022131767,0.72958,2741.5,2741.4,0.57747485]
[1740022134565,0.72958,2741.5,2741.4,0.00547485]
[1740022134767,3.68958,2741.5,2741.4,0.00547485]
[1740022137269,4.25668,2741.5,2741.4,0.00547485]
[1740022151478,1.29668,2741.5,2741.4,0.00547485]
[1740022151669,1.35496185,2741.5,2741.4,0.00547485]
[1740022151876,0.72966,2741.2,2741.1,0.5542]
[1740022152174,2.402,2741.2,2741.0,0.5457]
[1740022152377,1.28159,2741.1,2741.0,0.5457]
[1740022153378,1.28159,2741.1,2740.8,0.00547485]
[1740022153379,3.5119,2741.1,2740.8,0.00547485]
[1740022153678,0.72974,2740.9,2740.8,0.58497485]
[1740022157484,3.93754,2740.9,2740.8,0.58497485]
[1740022159287,3.9958331,2740.9,2740.8,0.00547485]
[1740022159685,0.72982,2740.6,2740.5,0.5522]
[1740022159883,3.13182,2740.6,2740.5,0.5522]
[1740022169491,6.09182,2740.6,2740.5,0.5522]
[1740022169689,8.5698,2740.6,2740.4,0.5565]
[1740022169995,8.5698,2740.6,2740.3,0.00547485]
[1740022169996,0.72987,2740.4,2740.3,0.00547485]
[1740022179399,6.1678,2740.9,2740.3,3.21327485]
[1740022179601,3.13178,2740.8,2740.4,0.5482]
[1740022179794,2.402,2740.8,2740.5,1.0901]
[1740022179990,0.72982,2740.6,2740.5,1.0901]
[1740022181304,3.13182,2740.6,2740.5,1.0901]
[1740022186906,3.13182,2740.6,2740.5,0.5525]
[1740022187106,3.13182,2740.6,2740.4,0.5482]
[1740022187107,2.402,2740.6,2740.4,0.5482]
[1740022187404,1.86945,2740.5,2740.4,0.5482]
[1740022189510,0.72985,2740.5,2740.4,0.5482]
[1740022189804,0.72985,2740.5,2740.4,1.6798]
[1740022189999,3.2078,2740.9,2740.4,1.6798]
[1740022190207,2.401,2740.8,2740.4,1.6798]
[1740022190409,0.7298,2740.7,2740.4,1.6798]
[1740022190905,2.401,2740.8,2740.4,1.6798]
[1740022191106,0.72983,2740.6,2740.4,1.6798]
[1740022191608,0.72984,2740.6,2740.4,1.6798]
[1740022192910,0.72985,2740.5,2740.4,1.6798]
[1740022195603,0.72983,2740.6,2740.4,1.6798]
[1740022195910,2.401,2740.5,2740.4,1.6798]
[1740022196705,0.72985,2740.5,2740.4,1.6798]
[1740022201705,2.4,2740.6,2740.4,1.6798]
[1740022202008,3.12984,2740.6,2740.4,1.6798]
[1740022202312,2.96,2740.9,2740.5,3.2078]
[1740022202515,5.36,2740.9,2740.7,0.72978]
[1740022202811,5.36,2740.9,2740.8,1.85457]
[1740022203112,5.36,2740.9,2740.8,5.06237]
[1740022203315,2.96,2740.9,2740.8,5.06237]
[1740022203503,3.68974,2740.9,2740.8,4.3326]
[1740022203904,1.6878,2741.4,2740.8,4.3326]
[1740022204117,2.4,2741.3,2740.8,4.3326]
[1740022204414,0.72968,2741.2,2740.8,4.3326]
[1740022204615,0.7297,2741.1,2740.8,4.3326]
[1740022205015,2.4,2741.3,2740.8,4.3326]
[1740022205208,0.72967,2741.2,2740.8,5.06236]
[1740022206215,3.12964,2741.3,2740.9,0.72973]
[1740022207016,0.72967,2741.2,2741.0,0.5755]
[1740022207313,0.72968,2741.2,2741.0,0.5755]
[1740022207514,2.4,2741.3,2741.0,0.5755]
[1740022208108,0.72969,2741.1,2741.0,0.5755]
[1740022216719,2.399,2741.3,2741.0,0.5755]
[1740022216921,2.96,2741.4,2741.0,1.30521]
[1740022217116,2.399,2741.4,2741.1,3.93748]
[1740022217420,2.399,2741.6,2741.2,1.1235]
[1740022217625,2.399,2741.6,2741.2,1.85315]
[1740022218026,3.12857,2741.6,2741.2,1.85315]
[1740022218624,2.399,2741.6,2741.3,0.72963]
[1740022218825,3.12856,2741.6,2741.3,0.72963]
[1740022219020,1.0924,2741.7,2741.2,1.1235]
[1740022219021,0.5565,2741.7,2741.4,4.508]
[1740022219221,0.72951,2741.8,2741.4,4.508]
[1740022219529,0.7295,2741.8,2741.5,0.72957]
[1740022219820,0.7295,2741.8,2741.6,1.1345]
[1740022220829,0.00547485,2741.9,2741.7,3.2078]
[1740022221020,0.00547485,2741.9,2741.8,0.5706]
[1740022224028,2.399,2742.8,2742.5,0.72931]
[1740022224526,1.28033,2742.9,2742.5,0.72931]
[1740022224739,0.5511,2742.9,2742.4,1.099]
[1740022224930,0.72924,2742.8,2742.4,1.83379485]
[1740022226224,0.5511,2742.9,2742.4,1.10447485]
[1740022226430,1.28032,2742.9,2742.5,0.72931]
[1740022226929,0.5511,2742.9,2742.6,0.5577]
[1740022227131,0.72924,2742.8,2742.6,0.5577]
[1740022228230,1.28032,2742.9,2742.6,0.5577]
[1740022229823,0.5511,2742.9,2742.7,0.72925]
[1740022230127,0.5511,2742.9,2742.6,3.7655]
[1740022230128,0.00547485,2743.0,2742.6,3.7655]
[1740022230335,0.00547485,2743.0,2742.9,3.2078]
[1740022233832,0.00547485,2743.0,2742.9,3.93701]
[1740022234133,0.00547485,2743.0,2742.9,3.2078]
[1740022234333,0.00547485,2743.0,2742.9,3.93701]
[1740022235934,0.00547485,2743.0,2742.9,3.2078]